Cogmind - Beta 13 @@@ ROGUE MODE // 2024.06.20 @ 11:55:47 Player: Xintrosi Result: Destroyed by S-10 Pest with Light Assault Rifle Performance ------------- Evolutions (0) 0 Regions Visited (3) 600 Robots Destroyed (50) 250 Value Destroyed (1124) 1124 Prototype IDs (10) 200 Alien Tech Used (0) 0 Bonus (-27) -27 TOTAL SCORE: 2147 Bonus ------- Follower Combat Kills 37 Friendly Fire -64 Cogmind --------- Core Integrity 0/250 Matter 240/300 Energy 250/250 System Corruption 0% Temperature Cool (0) Movement Treading (160) Location -10/Subcaves Parts ------- > --- POWER (1) -------- Ion Engine > --- PROPULSION (2) --- Light Treads Light Treads > --- UTILITY (2) ------ Large Storage Unit Makeshift Light Armor Plating > --- WEAPON (2) ------- Subdweller Beam Cannon Grenade Launcher > --- INVENTORY (15) --- Light Nuclear Core Arachnoskeleton Huge Storage Unit Compact Matter Pod (102) Visual Processing Unit Seismic Detector Targeting Computer Scrap Shield Subdweller Beam Cannon Heavy Assault Rifle Flamer Peak State ------------ > --- POWER ------------ Subdweller Power Source > --- PROPULSION ------- Light Treads Light Treads > --- UTILITY ---------- Large Storage Unit Makeshift Light Armor Plating > --- WEAPON ----------- Subdweller Beam Cannon Subdweller Beam Cannon > --- INVENTORY -------- Ion Engine Light Nuclear Core Arachnoskeleton Huge Storage Unit Compact Matter Pod Visual Processing Unit Seismic Detector Targeting Computer Scrap Shield Heavy Assault Rifle Grenade Launcher Flamer [Rating: 17] Favorites ----------- Power Light Nuclear Core Engine Subdweller Power Source Power Core Light Nuclear Core Propulsion Light Treads Treads Light Treads Wheel Wheel Utility Large Storage Unit Device Seismic Detector Storage Large Storage Unit Processor Targeting Computer Protection Light Armor Plating Weapon Assault Rifle Energy Gun Medium Laser Energy Cannon Subdweller Beam Cannon Ballistic Gun Assault Rifle Ballistic Cannon Light Cannon Launcher Grenade Launcher Build | -11 -10 -10 -10 ------- Run | Yrd Mat Min Sub Slots Evolved . | . . . . Power . | . . . . Propulsion . | . . . . Utility . | . . . . Weapon . | . . . . Parts Attached 52 | 8 20 9 15 Power 6 | 2 1 1 2 Engine 4 | 2 . . 2 Core 2 | . 1 1 . Reactor . | . . . . Propulsion 12 | 2 7 2 1 Treads 11 | 2 6 2 1 Leg . | . . . . Wheel 1 | . 1 . . Hover . | . . . . Flight . | . . . . Utility 14 | 2 5 1 6 Device 4 | 1 . . 3 Storage 3 | 1 1 . 1 Processor 3 | . 3 . . Hackware . | . . . . Protection 4 | . 1 1 2 Artifact . | . . . . Weapon 20 | 2 7 5 6 Energy Gun 2 | 1 . . 1 Energy Cannon 3 | . . . 3 Ballistic Gun 5 | 1 3 1 . Ballistic Cannon 5 | . 2 3 . Launcher 5 | . 2 1 2 Special Weapon . | . . . . Impact Weapon . | . . . . Slashing Weapon . | . . . . Piercing Weapon . | . . . . Special Melee Weapon . | . . . . Unidentified Prototypes . | . . . . Parts Lost 4 | . 3 . 1 Power . | . . . . Propulsion 2 | . 2 . . Utility . | . . . . Weapon 2 | . 1 . 1 Highest Loss Streak 2 | . 2 . 1 To Critical Strikes . | . . . . Average Slot Usage (%) 99 | . 99 100 99 Engine 4 | . 4 . 9 Core 9 | . 9 14 4 Treads 27 | . 27 28 28 Device 2 | . 1 . 5 Storage 14 | . 14 14 14 Processor 4 | . 12 . . Protection 6 | . . 14 8 Energy Gun 2 | . 4 . 3 Energy Cannon 4 | . . . 12 Ballistic Gun 7 | . 13 9 . Ballistic Cannon 6 | . 9 10 1 Launcher 5 | . . 8 10 Naked Turns . | . . . . Heaviest Build 45 | 15 33 34 45 Greatest Support 40 | 40 40 40 40 Greatest Overweight (x) 2 | . 2 . 1 Average Overweight (x) . | . . . . Largest Inventory Capacity 15 | 8 15 15 15 Average Capacity 14 | 7 14 15 15 Most Carried 15 | 4 15 15 15 Average Carried 13 | 2 13 14 14 Final Capacity 15 | 8 15 15 15 Final Carried 15 | 4 14 15 14 Class Distribution -------------------- 60% | Mutant 39% | Scavenger-Mutant Dominant Class ---------------- Mutant | -10/Materials Scavenger-Mutant | -10/Mines Scavenger-Mutant | -10/Subcaves Resources | -11 -10 -10 -10 ----------- Run | Yrd Mat Min Sub Matter Collected 1304 | 301 511 313 179 Remotely 219 | 88 43 . 88 Salvage Created 1477 | 196 963 266 52 Parts 106 | 19 58 26 3 Haulers Intercepted 2 | . 2 . . Recyclers Shooed . | . . . . Parts Field Recycled . | . . . . Retrieved Matter . | . . . . Parts Self-Destructed 1 | . . . 1 Prevented . | . . . . Kills | -11 -10 -10 -10 ------- Run | Yrd Mat Min Sub Combat Hostiles Destroyed 33 | . 18 13 2 Guns 14 | . 12 2 . Cannons 9 | . 5 3 1 AOE 10 | . 1 8 1 Classes Destroyed 10 | 3 4 2 1 Worker 2 | 2 . . . Builder 3 | . 3 . . Tunneler 5 | 3 1 1 . Hauler 2 | . 2 . . Recycler 3 | 1 1 1 . Watcher 2 | . 2 . . Swarmer 9 | . . 8 1 Grunt 22 | . 18 4 . Sentry 1 | . . 1 . Subdweller 1 | . . . 1 Best Kill Streak 5 | 2 5 3 1 Combat Bots Only 4 | . 4 3 1 Max Kills in Single Turn 3 | 1 1 3 1 Gunslinging . | . . . . Exploded 3 | . 1 3 1 Melee . | . . . . Uniques/NPCs Destroyed . | . . . . Combat | -11 -10 -10 -10 -------- Run | Yrd Mat Min Sub Hostile Shots Fired 138 | . 93 29 16 Missed 33 | . 23 6 4 Damage Taken 1543 | . 865 406 272 Core 258 | . 105 65 88 Absorbed by Shields . | . . . . Core Remaining (%) 100 | 100 . . . Volleys Fired 176 | 7 71 28 70 Largest 2 | 2 2 2 2 Hottest 160 | 70 85 55 160 Shots Fired 268 | 14 140 38 76 Gun 136 | 14 100 19 3 Cannon 106 | . 37 5 64 Launcher 26 | . 3 14 9 Special . | . . . . Kinetic 137 | 7 93 24 13 Thermal 105 | 7 44 . 54 Explosive 26 | . 3 14 9 Electromagnetic . | . . . . Robot Hit Streak 21 | 5 21 11 5 Robot Miss Streak 5 | 2 5 1 2 Penetration Max . | . . . . Secondary Targets 1 | . 1 . . Max Gunslinging Chain 1 | . 1 . . Shots Hit Robots 133 | 7 95 23 8 Core Hits 82 | 7 46 20 9 Critical Kills . | . . . . Critical Parts Destroyed 1 | . 1 . . Critical Strikes 6 | . 6 . . Burn 4 | . 4 . . Destroy 1 | . 1 . . Blast 1 | . 1 . . Melee Attacks . | . . . . Impact . | . . . . Slashing . | . . . . Piercing . | . . . . Sneak Attacks . | . . . . Combat Hostiles . | . . . . Follow-up Attacks . | . . . . Damage Inflicted 2739 | 102 1413 974 250 Guns 1130 | 102 865 163 . Cannons 702 | . 457 83 162 Explosions 907 | . 91 728 88 Melee . | . . . . Ramming . | . . . . Kinetic 1249 | 39 964 246 . Thermal 583 | 63 358 . 162 Explosive 907 | . 91 728 88 Electromagnetic . | . . . . Impact . | . . . . Slashing . | . . . . Piercing . | . . . . Highest Corruption . | . . . . Average Corruption . | . . . . Corruption Purged . | . . . . Corruption Blocked . | . . . . Overload Shots . | . . . . Overflow Damage 78 | . 15 63 . Projectiles 24 | . 15 9 . Explosions 54 | . . 54 . Melee . | . . . . Knockbacks 5 | . 5 . . Impact . | . . . . Kinetic 4 | . 4 . . Secondary 1 | . 1 . . Self-Inflicted Damage 189 | . . 123 66 Shots 7 | . . 4 3 Rammed . | . . . . Targets Rammed . | . . . . Kicked . | . . . . Crushed . | . . . . Highest Temperature 420 | 18 420 55 120 Average Temperature 73 | 8 103 23 34 Received Heat Transfer 684 | . 507 123 54 Effects 2 | . 2 . . Shutdowns 1 | . 1 . . Energy Bleed 1 | . 1 . . Siege Activations . | . . . . Robots Corrupted . | . . . . Combat Hostiles . | . . . . Parts Fried . | . . . . Impact Corruptions . | . . . . Robots Melted . | . . . . Combat Hostiles . | . . . . Parts Melted 3 | . 2 . 1 Heat Transferred 1776 | 185 1369 . 222 Parts Sabotaged . | . . . . Parts Stolen . | . . . . Parts Stripped . | . . . . Power Chain Reactions . | . . . . Alert | -11 -10 -10 -10 ------- Run | Yrd Mat Min Sub Peak Influence 324 | 30 276 324 . Initial 45 | . 19 45 . Average 158 | 10 160 177 . Maximum Alert Level 1 | . 1 1 . Low Security (%) 66 | 100 60 71 . Level 1 33 | . 39 28 . Level 2 . | . . . . Level 3 . | . . . . Level 4 . | . . . . Level 5 . | . . . . High Security . | . . . . Max Security . | . . . . Squads Dispatched 5 | . 5 . . Investigation 5 | . 5 . . Extermination . | . . . . Reinforcement . | . . . . Assault . | . . . . Garrison . | . . . . Intercept . | . . . . Searches Triggered . | . . . . Construction Impeded . | . . . . Haulers Reinforced . | . . . . Active Scanning Responses . | . . . . Cargo Convoy Interrupts . | . . . . Stealth | -11 -10 -10 -10 --------- Run | Yrd Mat Min Sub Distress Signals 1 | . 1 . . Communications Jammed . | . . . . Distress Signals . | . . . . Times Spotted 42 | . 24 12 6 Peak Tracking Total 6 | . 4 3 6 Tactical Retreats 4 | . 1 1 2 Traps | -11 -10 -10 -10 ------- Run | Yrd Mat Min Sub Traps Triggered 3 | . 3 . . Indirectly . | . . . . Trap Hack Attempts . | . . . . Triggered . | . . . . Disarmed . | . . . . Reprogrammed . | . . . . Reused . | . . . . Traps Extracted . | . . . . Installed . | . . . . Triggered . | . . . . Machines | -11 -10 -10 -10 ---------- Run | Yrd Mat Min Sub Machines Disabled 4 | . . 3 1 Max in Single Turn 1 | . . 1 1 Machines Repaired . | . . . . Machines Dismantled . | . . . . Machines Sabotaged . | . . . . Overloaded Fab Kills . | . . . . Hacking | -11 -10 -10 -10 --------- Run | Yrd Mat Min Sub Machines Accessed 9 | . 8 . 1 Terminals 6 | . 6 . . Fabricators . | . . . . Repair Stations . | . . . . Recycling Units 2 | . 2 . . Scanalyzers . | . . . . Garrison Access . | . . . . Total Hacks 28 | . 19 . 9 Successful 14 | . 5 . 9 Failed 14 | . 14 . . Catastrophic 3 | . 3 . . Database Lockouts . | . . . . Manual 3 | . 3 . . Terminals 15 | . 15 . . Fabricators . | . . . . Repair Stations . | . . . . Recycling Units 4 | . 4 . . Scanalyzers . | . . . . Garrison Access . | . . . . Terminal Hacks 12 | . 3 . 9 Record 8 | . . . 8 Robot Analysis 1 | . 1 . . Alert Level 1 | . 1 . . Hauler Manifests 1 | . 1 . . Derelict Proto ID Bank 1 | . . . 1 Fabricator Hacks . | . . . . Repair Station Hacks . | . . . . Recycling Unit Hacks 1 | . 1 . . Report Inventory 1 | . 1 . . Scanalyzer . | . . . . Garrison Access Hacks . | . . . . Unauthorized Hacks 1 | . 1 . . Terminals 1 | . 1 . . Assimilate 1 | . 1 . . Fabricators . | . . . . Repair Stations . | . . . . Recycling Units . | . . . . Scanalyzers . | . . . . Garrison Access . | . . . . Data Cores Recovered . | . . . . Used . | . . . . Hacking Detections 7 | . 7 . . Full Trace Events 2 | . 2 . . Feedback Events . | . . . . Feedback Blocked . | . . . . Robot Schematics Acquired . | . . . . Robots Built . | . . . . Authchips . | . . . . Time . | . . . . Total Robot Build Rating . | . . . . Part Schematics Acquired . | . . . . Parts Built . | . . . . Authchips . | . . . . Time . | . . . . Total Part Build Rating . | . . . . Parts Repaired . | . . . . Time . | . . . . Parts Recycled . | . . . . Recycled Matter . | . . . . Retrieved Matter . | . . . . Retrieved Components . | . . . . Parts Scanalyzed . | . . . . Part Schematics Acquired . | . . . . Parts Damaged . | . . . . Bothacking | -11 -10 -10 -10 ------------ Run | Yrd Mat Min Sub Used RIF Installer . | . . . . Robots Hacked . | . . . . Non-combat . | . . . . Combat . | . . . . Robot Hacks Applied . | . . . . Relay Couplers Released . | . . . . Fabnet Peak Effective % . | . . . . Robots Rewired . | . . . . Allies Hacked . | . . . . Hacks Repelled . | . . . . Allies | -11 -10 -10 -10 -------- Run | Yrd Mat Min Sub Total Allies 3 | . . 3 . Largest Group 3 | . . 3 3 Highest-Rated Group 40 | . . 40 40 Highest-Rated Ally 16 | . . 16 16 Total Orders 1 | . . . 1 ROAM 1 | . . . 1 Ally Attacks 11 | . . . 11 Total Damage 99 | . . . 99 Kills 2 | . . . 2 Allies Corrupted 1 | . . . 1 Allies Melted . | . . . . Intel | -11 -10 -10 -10 ------- Run | Yrd Mat Min Sub Robot Analysis Total 1 | . 1 . . Derelict Logs Recovered 2 | . . 1 1 Drone Launches . | . . . . Drone Recoveries . | . . . . Exploration | -11 -10 -10 -10 ------------- Run | Yrd Mat Min Sub Turns Passed 4071 | 160 1548 1023 1340 Spaces Moved 2114 | 69 778 581 686 Core 3 | 3 . . . Treads 2075 | 66 742 581 686 Legs . | . . . . Wheels 36 | . 36 . . Hover . | . . . . Flight . | . . . . Fastest Speed 50 | 50 110 160 160 Average Speed 160 | 155 157 160 166 Slowest Speed 240 | 160 160 160 240 Overloaded Moves . | . . . . Propulsion Burnouts . | . . . . Robots Hopped . | . . . . Cave-ins Triggered . | . . . . Exploration Rate (%) 61 | 5 97 96 47 Regions Visited 3 Branch Regions 2 Pre-discovered Areas 1 | . . 1 . Known Exits Taken 1 | . 1 . . Unknown Exits Taken 2 | 1 . 1 . Scrap Searched 5 | . . 1 4 Spaces Dug 4 | . . . 4 Terrain Destroyed 157 | . 12 106 39 Melee . | . . . . Projectile 5 | . . . 5 AOE 152 | . 12 106 34 Terrain Rammed . | . . . . Walls Destroyed . | . . . . Machines Disabled . | . . . . Actions | -11 -10 -10 -10 --------- Run | Yrd Mat Min Sub Total 2509 | 104 955 640 810 Wait 109 | 18 63 9 19 Move 2111 | 68 777 580 686 Hop . | . . . . Pick Up 32 | 3 17 5 7 Fast Attach 11 | 7 1 . 3 Attach 5 | . 3 . 2 Detach . | . . . . Swap 36 | 1 16 9 10 Drop 29 | . 7 9 13 Fire 176 | 7 71 28 70 Melee . | . . . . Ram . | . . . . Kick . | . . . . Crush . | . . . . Escape Stasis . | . . . . Rewire . | . . . . Trap . | . . . . Miscellaneous . | . . . . Route ------- -11/Scrapyard -10/Materials (discovered 4 exits: *Mat x3 / *Min) -10/Mines (discovered 3 exits: *Mat x2 / *Sub) -10/Subcaves History --------- Turn | Location | Event 6 | -11/Scrapyard | Discovered new exit (range 14) 161 | -11/Scrapyard | Entered Materials 317 | -10/Materials | Build established: Mutant 493 | -10/Materials | Discovered new exit (range 8) 1006 | -10/Materials | Discovered new exit (range 16) 1141 | -10/Materials | Discovered new exit (range 7) 1283 | -10/Materials | Identified exit to Materials 1520 | -10/Materials | Discovered new exit (range 16) 1698 | -10/Materials | Identified exit to Mines 1709 | -10/Materials | Entered Mines 1725 | -10/Mines | Met a Derelict bent on vengeance 1807 | -10/Mines | Core integrity fell below 50% 1855 | -10/Mines | Learned location of Zion (-7) 1873 | -10/Mines | Found a hidden stash of uninstalled traps 1908 | -10/Mines | Deemed a non-threat by the Exiles lab entrance 2012 | -10/Mines | Discovered exit to Materials (range 6) 2026 | -10/Mines | Joined a pair of Derelicts in attacking an 0b10 outpost 2124 | -10/Mines | Discovered exit to Materials (range 11) 2277 | -10/Mines | Assisted by bots powering up and referring to "LRC-V3" 2332 | -10/Mines | Build established: Scavenger-Mutant 2725 | -10/Mines | Discovered new exit (range 4) 2732 | -10/Mines | Entered Subcaves 2732 | -10/Subcaves | Accompanied by 3 allies 2733 | -10/Subcaves | Shifting Twisted Machinery released Flamer 2815 | -10/Subcaves | Shifting Twisted Machinery released Sub. Beam Cannon 2876 | -10/Subcaves | A swath of the cavern ceiling suddenly collapsed 3185 | -10/Subcaves | Learned 2 Materials zone layouts 3223 | -10/Subcaves | A swath of the cavern ceiling suddenly collapsed 3381 | -10/Subcaves | Visited 4L-MR0's lab 3408 | -10/Subcaves | Found Arachnoskeleton 3489 | -10/Subcaves | Shifting Twisted Machinery released Sub. Beam Cannon 3493 | -10/Subcaves | Shifting Twisted Machinery released Mak. Light Armor Plating 3640 | -10/Subcaves | Disturbed a concealed Subdweller 3641 | -10/Subcaves | Core integrity fell below 20% 3926 | -10/Subcaves | Build established: Mutant 4072 | -10/Subcaves | Destroyed by S-10 Pest with Light Assault Rifle Last Messages --------------- 03623_ Found Battle Cannon. 03623_ Found 15 Matter. 03624_ Acquired 15 matter. 03626_ Searching scrap... 03626_ Found Sub. Beam Cannon. 03626_ Found Scrap Shield. 03626_ Found 17 Matter. 03627_ Acquired 17 matter. 03629_ Dropped Sub. Laser. 03631_ Acquired Sub. Beam Cannon. 03640_ 1F-2J5(R) angrily emerges from the Twisted Machinery. 03651_ 1F-2J5(R) affixes Scrap Shield Fragment to Scrap Shield. 03661_ Disposable Heat Sink melted. 03661_ 1F-2J5(R) destroyed. 03802_ LE-CF5(u) builds Twisted Machinery. 03926_ 9T-P9R(u) tweaks Twisted Machinery. 03981_ Sub. Power Source shoots sparks and powers down. 03982_ Dropped Broken Sub. Power Source. 04067_ S-10 Pest destroyed. 04068_ Trooper 1b destroyed. Map ----- +----------------------------------------------------+ | #### #??????????????????????????????? | | ???## #??????????????????????????????? | | ???## "###??????????????????????????????? | | ???# ####????????????????????????????????? | | ???## #???????????????????????????????????? | | ????## #???????????????????????????????????? | | ?????# ### #?????#???????????????????????????? | | ?????# ##??# " "??? #??????????????????????????? | | ?????# ##???# " "?? #?????????????????????????? | | ????## ###??# "?? #?????????????????????????? | | ?#### ##??### ??""##????????????????????????? | | ## ###????#? " #????????????????????????? | | # ###????# #????????????????????????? | | ### #????# #????????????????????????? | | ??# #???## #????????????????????????? | | ??# #?### ###???????????????????????? | | ??## #### #??????????????????????? | | ???# ## ????##?????##?????????? | | ???# ## #?## #### ### ??????? | | ???# ## ## ??????? | | ???# ## ?????? | | ???# #?# % ?????? | | ???## #?# s## #????????? | | ????# ## ### ## #?????????? | | ????#### ### ## ## ##?????????? | | ???????###?# ### @ #?## #??????????? | | ????????#### #######??? #?????????? | | ????##### ######???? ####?????????? | | ????# * ##???? ##????????????? | | ????# ## #?????##?????????????? | | ????## #### ## ##????????????????????? | | ?????########??######### ##?????????????????????? | | ????????????????????????###??????????????????????? | | ?????????????????????????????????????????????????? | | ?????????????????????????????????????????????????? | | ?????????????????????????????????????????????????? | | ?????????????????????????????????????????????????? | | ?????????????????????????????????????????????????? | | ?????????????????????????????????????????????????? | | ?????????????????????????????????????????????????? | | ?????????????????????????????????????????????????? | | ?????????????????????????????????????????????????? | | ?????????????????????????????????????????????????? | | ?????????????????????????????????????????????????? | | ?????????????????????????????????????????????????? | | ?????????????????????????????????????????????????? | | ?????????????????????????????????????????????????? | | | | | | | +----------------------------------------------------+ Best States ------------- Heat Dissipation 25 Energy Generation 15 Energy Capacity 250 Matter Stores 300 Matter Capacity 300 Sight Range 16 Terrain Scan Density 10 Armor Coverage 150 Evasion (%) 40 Targeting Accuracy 5 Recoil Reduction 2 Item Schematics ----------------- None Robot Schematics ------------------ None Fabricated ------------ Nothing Alien Tech Used ----------------- None Achievements -------------- None Challenges ------------ None Game ------ Seed CannonZioniteHammer Manual? 0 Play Time 00:58:46 Cumulative 33.0 hours Start 2024.06.20 @ 10:54:29 End 2024.06.20 @ 11:55:47 Sessions 1 Manual Loads 0 Difficulty Rogue Special Mode None Game No. 14 Rogue 14 Adventurer 0 Explorer 0 Win Type - Total 0 Types 0/0/0/0/0/0/0/0/0 Lore% 23 Gallery% 27 Achievement% 24 Wizard Run 0 Options --------- Layout 0 ASCII 0 Keyboard 1 Movement Numpad Keybinds 0 Fullscreen 2 Font 18/SmallcapsGlow Map View 76x50 Zoom Use 0% Tactical HUD 1 Map Filters NONE Filters NONE Steam 1 RUN: 69b71b3c-7b40-45fd-bf8f-30a62b07d4bc